bitfinex/quotes_BTCUSD_20210402
["timestamp","ask_amount","ask_price","bid_price","bid_amount"]
[1617335414084,0.01973163,59788.0,59785.0,0.175]
[1617335414287,0.01973163,59788.0,59785.0,0.67729]
[1617335416489,0.01973163,59788.0,59786.0,0.26]
[1617335416689,0.01973163,59788.0,59786.0,0.76229]
[1617335416903,0.02098,59800.0,59787.0,0.251147]
[1617335417299,0.02098,59800.0,59788.0,3.35]
[1617335417497,0.02098,59800.0,59788.0,3.85229]
[1617335417898,0.02098,59800.0,59788.0,0.78229]
[1617335418303,0.05000001,59789.0,59788.0,0.50229]
[1617335418701,0.46232039,59789.0,59788.0,0.50229]
[1617335419104,2.14232039,59789.0,59788.0,0.50229]
[1617335419304,0.97283139,59789.0,59788.0,0.50229]
[1617335419532,0.74175277,59789.0,59788.0,0.50229]
[1617335419735,0.69175277,59789.0,59788.0,0.50229]
[1617335419937,0.30532177,59789.0,59788.0,0.50229]
[1617335420132,0.13532177,59789.0,59788.0,1.07229]
[1617335420333,0.06124177,59789.0,59788.0,1.07229]
[1617335421134,0.06124177,59789.0,59788.0,3.57229]
[1617335421332,0.06124177,59789.0,59788.0,3.62229]
[1617335421932,0.06124177,59789.0,59788.0,4.12406]
[1617335422829,0.03124176,59789.0,59788.0,4.12406]
[1617335423441,0.03124176,59789.0,59788.0,4.28006]
[1617335424231,0.03124176,59789.0,59788.0,4.12406]
[1617335424433,0.03124176,59789.0,59788.0,1.62406]
[1617335424637,0.03124176,59789.0,59788.0,1.34177]
[1617335424638,0.44356214,59789.0,59788.0,1.34177]
[1617335424838,0.03124176,59789.0,59788.0,0.50177]
[1617335425233,0.60456214,59789.0,59788.0,0.50177]
[1617335425439,1.09475314,59789.0,59788.0,0.50177]
[1617335425633,0.94375314,59789.0,59788.0,0.50177]
[1617335425832,1.11375314,59789.0,59788.0,0.50177]
[1617335426436,0.65143276,59789.0,59788.0,0.50177]
[1617335426635,0.58767276,59789.0,59788.0,0.5043037]
[1617335427036,0.20124176,59789.0,59788.0,0.5043037]
[1617335427233,0.03124176,59789.0,59788.0,0.4993037]
[1617335428033,1.06124176,59789.0,59788.0,0.4993037]
[1617335428235,0.41767276,59789.0,59788.0,0.4993037]
[1617335428431,0.61767276,59789.0,59788.0,0.4993037]
[1617335429232,1.02999314,59789.0,59788.0,0.4993037]
[1617335429432,0.61767276,59789.0,59788.0,0.4993037]
[1617335429635,0.77267276,59789.0,59788.0,0.4993037]
[1617335430245,0.38624176,59789.0,59788.0,0.4993037]
[1617335430438,0.23124176,59789.0,59788.0,0.4993037]
[1617335431032,0.23124176,59789.0,59788.0,3.3193037]
[1617335431235,0.23124176,59789.0,59788.0,0.4993037]
[1617335432040,0.23124176,59789.0,59788.0,3.5693037]
[1617335432237,0.23124176,59789.0,59788.0,3.9443037]
[1617335433059,0.23124176,59789.0,59788.0,0.8743037]
[1617335433265,0.23124176,59789.0,59788.0,0.4993037]
[1617335433864,1.01309647,59789.0,59788.0,0.4993037]
[1617335435063,0.81309647,59789.0,59788.0,3.5693037]
[1617335435330,1.01309647,59789.0,59788.0,3.9043037]
[1617335435532,1.01309647,59789.0,59788.0,0.8343037]
[1617335435926,1.01309647,59789.0,59788.0,0.4993037]
[1617335437959,1.01309647,59789.0,59788.0,2.4993037]
[1617335439592,1.21309647,59789.0,59788.0,2.4993037]
[1617335441418,1.78941685,59789.0,59788.0,2.4993037]
[1617335441616,2.23053685,59789.0,59788.0,2.4993037]
[1617335442013,2.30939456,59789.0,59788.0,2.4993037]
[1617335443218,2.34939456,59789.0,59788.0,2.4993037]
[1617335443423,2.98582556,59789.0,59788.0,2.4993037]
[1617335443618,2.28350518,59789.0,59788.0,2.4993037]
[1617335443819,5.79182556,59789.0,59788.0,2.4993037]
[1617335444042,6.03182556,59789.0,59788.0,2.4993037]
[1617335444241,5.91952364,59789.0,59788.0,2.4993037]
[1617335444442,6.31946738,59789.0,59788.0,2.4993037]
[1617335444640,5.91952364,59789.0,59788.0,2.4993037]
[1617335444840,3.47952364,59789.0,59788.0,2.4993037]
[1617335445240,3.35182556,59789.0,59788.0,2.4993037]
[1617335445443,3.47952298,59789.0,59788.0,2.4993037]
[1617335445840,5.91952298,59789.0,59788.0,2.4993037]
[1617335446248,6.35503677,59789.0,59788.0,2.4993037]
[1617335446443,6.72498051,59789.0,59788.0,2.4993037]
[1617335446659,6.70498051,59789.0,59788.0,2.4993037]
[1617335446859,6.33003677,59789.0,59788.0,2.4993037]
[1617335447461,6.87098051,59789.0,59788.0,2.4993037]
[1617335447863,6.49603677,59789.0,59788.0,2.4993037]
[1617335448261,6.54603677,59789.0,59788.0,2.4993037]
[1617335448461,4.10603677,59789.0,59788.0,2.4993037]
[1617335448864,4.97052298,59789.0,59788.0,2.4993037]
[1617335449886,5.64052298,59789.0,59788.0,2.4993037]
[1617335450087,5.82603241,59789.0,59788.0,2.4993037]
[1617335450484,5.15603241,59789.0,59788.0,2.4993037]
[1617335450689,4.97052298,59789.0,59788.0,2.4993037]
[1617335451914,6.36052298,59789.0,59788.0,2.4993037]
[1617335452114,6.39852298,59789.0,59788.0,2.4993037]
[1617335452717,6.73852298,59789.0,59788.0,2.4993037]
[1617335452918,6.49852298,59789.0,59788.0,2.4993037]
[1617335454318,6.99852298,59789.0,59788.0,2.4993037]
[1617335455140,7.01598326,59789.0,59788.0,2.4993037]
[1617335457764,7.31598326,59789.0,59788.0,2.4993037]
[1617335458367,7.690927,59789.0,59788.0,2.4993037]
[1617335458762,7.690927,59789.0,59788.0,2.3793037]
[1617335458964,7.726927,59789.0,59788.0,2.3693037]
[1617335459167,7.816927,59789.0,59788.0,2.3693037]
[1617335459366,7.44198326,59789.0,59788.0,2.3693037]
[1617335459564,7.726927,59789.0,59788.0,2.0]
[1617335459790,8.316927,59789.0,59788.0,2.0]
[1617335460189,8.226927,59789.0,59788.0,2.0]
[1617335460991,7.986927,59789.0,59788.0,2.0]
[1617335461789,5.956927,59789.0,59788.0,2.0]
[1617335462192,5.50312555,59789.0,59788.0,2.0]
[1617335462612,6.49312555,59789.0,59788.0,2.0]
[1617335462814,5.0481456,59789.0,59788.0,2.0]
[1617335463611,6.1681456,59789.0,59788.0,2.0]
[1617335463817,6.58046598,59789.0,59788.0,1.995]
[1617335464012,6.1681456,59789.0,59788.0,1.995]
[1617335464210,6.58046598,59789.0,59788.0,1.995]
[1617335464413,6.42312555,59789.0,59788.0,1.995]
[1617335464611,6.31080517,59789.0,59788.0,1.995]
[1617335464811,5.81080517,59789.0,59788.0,1.995]
[1617335465436,5.83334489,59789.0,59788.0,1.995]
[1617335465838,5.99068156,59789.0,59788.0,1.995]
[1617335466239,5.83334489,59789.0,59788.0,1.995]
[1617335466639,6.24566527,59789.0,59788.0,1.995]
[1617335466840,6.403003,59789.0,59788.0,1.995]
[1617335467039,4.71334489,59789.0,59788.0,1.995]
[1617335467246,2.81834489,59789.0,59788.0,1.995]
[1617335467448,2.39064747,59789.0,59788.0,1.995]
[1617335468882,2.69064747,59789.0,59788.0,1.995]
[1617335470067,2.59064747,59789.0,59788.0,1.995]
[1617335470516,1.84064747,59789.0,59788.0,1.995]
[1617335470720,2.09064747,59789.0,59788.0,1.995]
[1617335470914,2.24812402,59789.0,59788.0,1.995]
[1617335471516,3.31812402,59789.0,59788.0,1.995]
[1617335471717,2.09064747,59789.0,59788.0,1.995]
[1617335471917,2.24812392,59789.0,59788.0,1.995]
[1617335472117,1.99812392,59789.0,59788.0,1.995]
[1617335472315,2.24812392,59789.0,59788.0,1.995]
[1617335472515,1.99812392,59789.0,59788.0,1.9975337]
[1617335472936,2.09064747,59789.0,59788.0,1.9975337]
[1617335473137,1.84064747,59789.0,59788.0,1.9975337]
[1617335473337,1.39952747,59789.0,59788.0,1.9975337]
[1617335474536,1.47906929,59789.0,59788.0,1.9975337]
[1617335474942,0.96309647,59789.0,59788.0,2.58521332]
[1617335475146,0.80809647,59789.0,59788.0,6.57995432]
[1617335475343,0.80809647,59789.0,59788.0,7.08172432]
[1617335476150,0.80809647,59789.0,59788.0,3.99172432]
[1617335476349,0.80809647,59789.0,59788.0,3.93379432]
[1617335477349,0.85809647,59789.0,59788.0,3.93379432]
[1617335477550,0.80809647,59789.0,59788.0,4.49379432]
[1617335478571,0.80809647,59789.0,59788.0,7.02379432]
[1617335478773,0.80809647,59789.0,59788.0,4.49379432]
[1617335478972,0.80809647,59789.0,59788.0,3.93379432]
[1617335479573,0.80809647,59789.0,59788.0,5.87379432]
[1617335479772,0.80809647,59789.0,59788.0,3.93379432]
[1617335480374,0.80809647,59789.0,59788.0,5.70379432]
[1617335481006,0.80809647,59789.0,59788.0,3.93379432]
[1617335481406,0.80809647,59789.0,59788.0,6.0472867]
[1617335481605,0.80809647,59789.0,59788.0,4.0372867]
[1617335482410,0.80809647,59789.0,59788.0,5.2572867]
[1617335483226,0.80809647,59789.0,59788.0,5.3072867]
[1617335483435,0.80809647,59789.0,59788.0,6.5972867]
[1617335483836,0.80809647,59789.0,59788.0,5.3072867]
[1617335484234,0.80809647,59789.0,59788.0,3.44960708]
[1617335484434,0.80809647,59789.0,59788.0,4.6572867]
[1617335484838,0.80309647,59789.0,59788.0,7.1272867]
[1617335485837,0.80309647,59789.0,59788.0,4.6572867]
[1617335486447,0.80309647,59789.0,59788.0,7.1272867]
[1617335486652,0.80309647,59789.0,59788.0,7.1852867]
[1617335486851,0.80309647,59789.0,59788.0,7.4252867]
[1617335487049,0.80309647,59789.0,59788.0,7.5574167]
[1617335487450,0.79809647,59789.0,59788.0,7.5574167]
[1617335488451,9.647e-05,59789.0,59788.0,7.5574167]
[1617335490271,9.647e-05,59789.0,59788.0,7.4552867]
[1617335490673,0.01107647,59800.0,59789.0,3.67767962]
[1617335490879,0.01107647,59800.0,59790.0,1.49267962]
[1617335491073,0.01107647,59800.0,59791.0,1.49267962]
[1617335491291,0.01107647,59800.0,59792.0,0.58767962]
[1617335491492,0.01107647,59800.0,59792.0,0.50177]
[1617335491696,0.01107647,59800.0,59792.0,0.60526238]
[1617335491902,0.01107647,59800.0,59794.0,0.251086]
[1617335491903,0.00803929,59800.0,59794.0,0.251086]
[1617335492099,0.00196284,59799.0,59795.0,0.81]
[1617335492497,0.00803931,59800.0,59796.0,1.8435]
[1617335492702,0.00196284,59799.0,59796.0,1.8435]
[1617335493098,0.00196284,59799.0,59796.0,2.44876238]
[1617335493296,0.00803931,59800.0,59797.0,0.325]
[1617335493496,0.00196346,59798.0,59797.0,0.325]
[1617335493698,0.00196346,59798.0,59797.0,1.077872]
[1617335494121,0.00196346,59798.0,59797.0,1.18136438]
[1617335494322,0.00196346,59798.0,59797.0,4.27136438]
[1617335494522,0.00196346,59798.0,59797.0,4.32142189]
[1617335494723,0.68221832,59799.0,59797.0,4.32142189]
[1617335494921,0.68221832,59799.0,59797.0,3.99642189]
[1617335495123,0.73221832,59799.0,59798.0,4.49677]
[1617335495522,0.73221832,59799.0,59798.0,4.60026238]
[1617335496747,0.73221832,59799.0,59798.0,1.51026238]
[1617335497246,0.73221832,59799.0,59798.0,1.51526238]
[1617335498269,0.73221832,59799.0,59798.0,2.30526238]
[1617335498469,0.73221832,59799.0,59798.0,0.50177]
[1617335500290,0.88721832,59799.0,59798.0,0.50177]
[1617335500493,0.87721832,59799.0,59798.0,0.50177]
[1617335502901,1.26364932,59799.0,59798.0,0.50177]
[1617335503103,0.87721832,59799.0,59798.0,0.50177]
[1617335503502,0.83721832,59799.0,59798.0,0.50177]
[1617335504728,0.68221832,59799.0,59798.0,0.50177]
[1617335505530,0.73221832,59799.0,59798.0,0.50177]
[1617335506134,0.68221832,59799.0,59798.0,2.73177]
[1617335506947,0.68221832,59799.0,59798.0,3.21177]
[1617335507147,0.68221832,59799.0,59798.0,3.76177]
[1617335507547,0.68221832,59799.0,59798.0,3.21177]
[1617335508548,0.72721832,59799.0,59798.0,3.21177]
[1617335509770,0.72721832,59799.0,59798.0,0.98177]
[1617335509972,0.72721832,59799.0,59798.0,0.50177]
[1617335510173,0.72721832,59799.0,59798.0,2.42177]
[1617335510572,0.72721832,59799.0,59798.0,0.50177]
[1617335515223,0.94221832,59799.0,59798.0,0.50177]
[1617335520258,1.32864932,59799.0,59798.0,0.50177]
[1617335520857,0.94221832,59799.0,59798.0,0.50177]
[1617335521658,0.72721832,59799.0,59798.0,0.50177]
[1617335522058,0.72721832,59799.0,59798.0,1.39177]
[1617335522261,0.68221832,59799.0,59798.0,0.50177]
[1617335522460,0.68221832,59799.0,59798.0,0.60653742]
[1617335522663,0.68221832,59799.0,59798.0,0.50177]
[1617335522887,0.68221832,59799.0,59798.0,2.31764942]
[1617335523086,0.68221832,59799.0,59798.0,2.212882]
[1617335523289,0.68221832,59799.0,59798.0,2.557882]
[1617335523688,0.73221832,59799.0,59798.0,2.557882]
[1617335524090,0.73221832,59799.0,59798.0,1.097882]
[1617335524289,0.73221832,59799.0,59798.0,0.752882]
[1617335525500,0.73221832,59799.0,59798.0,0.85764942]
[1617335525699,0.73221832,59799.0,59798.0,0.752882]
[1617335526902,0.73221832,59799.0,59798.0,2.002882]
[1617335527500,0.73221832,59799.0,59798.0,0.752882]
[1617335528166,0.73221832,59799.0,59798.0,0.50177]
[1617335529167,0.73221832,59799.0,59798.0,0.48659]
[1617335529168,2.0633131,59799.0,59798.0,0.48659]
[1617335529374,1.9097441,59799.0,59798.0,0.47141]
[1617335529569,1.57343932,59799.0,59798.0,0.4537]
[1617335529773,1.88472609,59799.0,59798.0,0.45117]
[1617335531766,1.63472609,59799.0,59798.0,0.45117]
[1617335532167,1.88472609,59799.0,59798.0,0.45117]
[1617335533378,1.63472609,59799.0,59798.0,0.45117]
[1617335534181,1.24829509,59799.0,59798.0,0.45117]
[1617335534982,1.18700832,59799.0,59798.0,0.45117]
[1617335535181,1.24828321,59799.0,59798.0,0.45117]
[1617335535782,1.24828321,59799.0,59798.0,1.56117]
[1617335536209,1.10828321,59799.0,59798.0,1.56117]
[1617335536408,0.79349321,59799.0,59798.0,1.56117]
[1617335536607,0.73221832,59799.0,59798.0,1.56117]
[1617335537007,0.73221832,59799.0,59798.0,1.55117]
[1617335537812,0.73221832,59799.0,59798.0,1.39117]
[1617335538210,0.88721832,59799.0,59798.0,0.44117]
[1617335539037,0.9484903,59799.0,59798.0,0.44117]
[1617335541254,1.1984903,59799.0,59798.0,0.44117]
[1617335541456,0.9484903,59799.0,59798.0,0.44117]
[1617335541657,1.61081068,59799.0,59798.0,0.44117]
[1617335541861,5.59096888,59799.0,59798.0,0.41081]
[1617335542063,4.47096888,59799.0,59798.0,0.38551]
[1617335542256,4.67624168,59799.0,59798.0,0.37539]
[1617335542461,2.03224168,59799.0,59798.0,0.37286]
[1617335544411,5.13224168,59799.0,59798.0,0.33997]
[1617335544607,5.24434471,59799.0,59798.0,0.18455]
[1617335544806,5.40634471,59799.0,59798.0,0.15672]
[1617335545010,5.40634471,59799.0,59798.0,0.11877]
[1617335545206,5.70634471,59799.0,59798.0,0.09094]
[1617335545406,5.70634471,59799.0,59798.0,0.06817]
[1617335545608,3.51232038,59798.0,59777.0,0.5376]
[1617335545811,3.259,59789.0,59777.0,0.5376]
[1617335546013,4.43269512,59789.0,59767.0,0.5173]
[1617335546209,4.77269512,59789.0,59767.0,0.5173]
[1617335546408,4.77888133,59789.0,59767.0,0.5173]
[1617335546609,5.90382507,59789.0,59767.0,0.5173]
[1617335546811,5.90382507,59789.0,59764.0,0.420551]
[1617335546812,1.0987148,59788.0,59764.0,0.420551]
[1617335547009,0.05916801,59777.0,59768.0,0.25127]
[1617335547215,0.38586801,59777.0,59756.0,1.7245]
[1617335547413,0.006,59770.0,59756.0,1.7245]
[1617335547615,0.00098614,59757.0,59756.0,1.7245]
[1617335547809,0.48692614,59757.0,59756.0,1.7245]
[1617335548411,0.48692614,59757.0,59756.0,1.975809]
[1617335548612,0.68594,59757.0,59756.0,1.975809]
[1617335548810,0.83094,59757.0,59756.0,1.975809]
[1617335549032,0.8329123,59757.0,59756.0,1.975809]
[1617335549432,0.68594,59757.0,59756.0,1.975809]
[1617335551651,0.68594,59757.0,59756.0,0.251309]
[1617335551855,0.82594,59757.0,59753.0,0.251335]
[1617335552252,0.00197238,59754.0,59753.0,0.251335]
[1617335552453,0.62587096,59757.0,59753.0,0.251335]
[1617335552858,0.62587096,59757.0,59752.0,0.15]
[1617335553054,0.62587096,59757.0,59752.0,0.145]
[1617335553455,0.2,59755.0,59744.0,0.15]
[1617335553653,0.25,59755.0,59750.0,0.251584]
[1617335554482,0.25,59755.0,59750.0,0.251344]
[1617335554684,0.0197332,59753.0,59750.0,0.251344]
[1617335555883,0.25,59755.0,59750.0,0.251344]
[1617335556281,0.135,59754.0,59750.0,0.251344]
[1617335557309,0.25,59755.0,59750.0,0.251344]
[1617335557910,0.25,59755.0,59746.0,0.251353]
[1617335558112,0.33291,59755.0,59746.0,0.251353]
[1617335559755,0.33291,59755.0,59743.0,0.37130393]
[1617335559957,0.33291,59755.0,59746.0,0.251353]
[1617335560555,0.33291,59755.0,59746.0,0.241353]
[1617335560957,0.33291,59755.0,59744.0,0.002]
[1617335561155,0.005,59753.0,59744.0,0.002]
[1617335561757,0.2,59749.0,59744.0,0.002]
[1617335562158,0.25,59749.0,59744.0,0.002]
[1617335562759,0.25,59749.0,59746.0,0.002]
[1617335564160,0.25,59749.0,59746.0,0.00453543]
[1617335564788,0.386431,59748.0,59746.0,0.00453543]
[1617335565190,3.486431,59747.0,59746.0,0.00453543]
[1617335565387,4.046431,59747.0,59746.0,0.00453543]
[1617335565789,3.1,59746.0,59727.0,0.00042]
[1617335565995,0.33816792,59744.0,59728.0,0.251406]
[1617335566190,0.386431,59743.0,59728.0,0.251406]
[1617335566391,0.2,59742.0,59728.0,0.251406]
[1617335566588,0.62494374,59742.0,59728.0,0.251406]
[1617335566787,0.25,59742.0,59728.0,0.251406]
[1617335566992,0.25,59742.0,59735.0,0.002]
[1617335567187,0.18,59741.0,59735.0,0.002]
[1617335567607,0.25,59742.0,59735.0,0.002]
[1617335567807,0.2,59742.0,59737.0,0.73767962]
[1617335568008,0.2,59742.0,59738.0,0.010005]
[1617335568205,0.2,59742.0,59737.0,0.15]
[1617335568804,0.2,59742.0,59739.0,0.251359]
[1617335569008,0.2,59742.0,59740.0,0.010005]
[1617335570636,0.25,59742.0,59740.0,0.010005]
[1617335571239,0.25,59742.0,59741.0,3.110003]
[1617335571438,0.25,59742.0,59741.0,3.635003]
[1617335572860,0.25,59742.0,59741.0,3.110003]
[1617335573292,0.25,59742.0,59741.0,3.105003]
[1617335575913,0.25,59742.0,59741.0,0.005003]
[1617335576311,0.25,59742.0,59741.0,1.805003]
[1617335576913,0.25,59742.0,59741.0,1.800003]
[1617335577115,0.25,59742.0,59741.0,2.230003]
[1617335577314,0.25,59742.0,59741.0,3.530003]
[1617335577517,0.25,59742.0,59741.0,2.230003]
[1617335577912,0.05,59742.0,59741.0,2.230003]
[1617335578113,0.00098466,59746.0,59741.0,2.230003]
[1617335578318,0.2,59742.0,59741.0,4.11767962]
[1617335578516,0.2,59742.0,59741.0,3.53]
[1617335578517,0.25,59742.0,59741.0,3.53]
[1617335578714,0.25,59742.0,59741.0,4.11767962]
[1617335579324,0.00098515,59747.0,59741.0,4.11767962]
[1617335579526,0.00098513,59750.0,59742.0,0.63767962]
[1617335579720,0.00098513,59750.0,59743.0,1.53977962]
[1617335579928,0.00098513,59751.0,59744.0,0.66767962]
[1617335580126,0.00025382,59758.0,59750.0,3.2611171]
[1617335580127,0.00098505,59754.0,59750.0,3.2611171]
[1617335580326,0.000985,59755.0,59752.0,0.460603]
[1617335580538,0.000985,59756.0,59753.0,0.58767962]
[1617335580736,0.00123882,59756.0,59754.0,0.905]
[1617335580937,0.00123882,59756.0,59755.0,3.68767962]
[1617335581138,0.00123882,59756.0,59755.0,5.09482962]
[1617335581139,0.00025382,59756.0,59755.0,5.09482962]
[1617335581337,0.00025382,59756.0,59755.0,5.59422962]
[1617335581537,0.05533667,59775.0,59756.0,3.68767962]
[1617335581743,0.05533667,59775.0,59765.0,0.554035]
[1617335581942,0.16062613,59789.0,59771.0,0.002]
[1617335582142,0.79875038,59788.0,59771.0,0.002]
[1617335582339,0.0697,59776.0,59771.0,0.002]
[1617335582538,0.0697,59776.0,59766.0,0.145]
[1617335582736,0.0197307,59775.0,59766.0,0.145]
[1617335583369,0.005,59773.0,59759.0,0.002]
[1617335583765,0.0697,59770.0,59759.0,0.002]
[1617335583968,0.02453131,59769.0,59758.0,0.47]
[1617335584172,0.01973159,59768.0,59761.0,0.334986]
[1617335584368,0.0697,59764.0,59761.0,0.334986]
[1617335584767,0.0697,59764.0,59762.0,0.225]
[1617335584967,0.0697,59764.0,59763.0,3.31]
[1617335585169,0.0647,59764.0,59763.0,3.31]
[1617335586592,0.0597,59764.0,59763.0,3.31]
[1617335588636,0.0597,59764.0,59763.0,3.561233]
[1617335589634,0.0597,59764.0,59763.0,3.56376775]
[1617335591447,0.0597,59764.0,59763.0,3.67485426]
[1617335591645,0.00303724,59788.0,59763.0,3.67485426]
[1617335591848,0.00303724,59788.0,59770.0,0.002]
[1617335591849,0.0064,59782.0,59770.0,0.002]
[1617335592249,0.01973053,59781.0,59770.0,0.002]
[1617335592446,0.0514,59776.0,59770.0,0.002]
[1617335592646,0.0514,59776.0,59765.0,1.8273]
[1617335592847,0.0514,59776.0,59766.0,0.29]
[1617335593048,0.0514,59776.0,59767.0,0.19]
[1617335593250,0.0514,59776.0,59771.0,0.251218]
[1617335595064,0.0514,59776.0,59771.0,0.25375231]
[1617335595262,0.0514,59776.0,59771.0,0.00253431]
[1617335596684,0.0514,59776.0,59773.0,0.251206]
[1617335596887,0.3350021,59775.0,59773.0,0.251206]
[1617335597085,0.38643,59774.0,59771.0,0.00253431]
[1617335597489,0.79875038,59774.0,59771.0,0.00253431]
[1617335597688,1.16059038,59774.0,59771.0,0.00253431]
[1617335597887,0.60232038,59773.0,59771.0,0.00253431]
[1617335598084,1.20289038,59773.0,59771.0,0.00253431]
[1617335598283,0.79875038,59772.0,59771.0,0.00253431]
[1617335598486,0.73143,59772.0,59771.0,0.00253431]
[1617335598691,1.14375038,59772.0,59771.0,4.31e-06]
[1617335598925,1.47875248,59772.0,59771.0,4.31e-06]
[1617335599725,1.56875248,59772.0,59771.0,4.31e-06]
[1617335599927,1.52875248,59772.0,59771.0,4.31e-06]
[1617335600128,1.52875248,59772.0,59748.0,0.9245]
[1617335600328,0.006,59767.0,59748.0,0.9245]
[1617335600526,0.41232038,59766.0,59748.0,0.9245]
[1617335600723,0.0514,59764.0,59748.0,0.9245]
[1617335600927,0.0514,59764.0,59762.0,0.25129]
[1617335601952,0.0514,59764.0,59761.0,0.251303]
[1617335608792,0.0514,59764.0,59760.0,0.335033]
[1617335610619,0.145,59763.0,59752.0,0.335081]
[1617335610816,0.55732038,59763.0,59752.0,0.335081]
[1617335611015,0.199,59763.0,59752.0,0.335081]
[1617335611214,0.0197346,59762.0,59752.0,0.335081]
[1617335611415,0.3486846,59762.0,59752.0,0.335081]
[1617335611617,0.2,59761.0,59752.0,0.335081]
[1617335611815,0.2,59760.0,59752.0,0.335081]
[1617335612438,0.185,59760.0,59755.0,0.49715]
[1617335612836,0.05,59761.0,59755.0,0.49715]
[1617335613036,0.44428,59762.0,59755.0,0.49715]
[1617335613241,0.85660038,59762.0,59755.0,0.49715]
[1617335613435,0.24,59761.0,59755.0,0.49715]
[1617335613635,0.6720556,59761.0,59755.0,0.49715]
[1617335613839,0.65232038,59761.0,59756.0,0.0016]
[1617335614036,0.36,59760.0,59756.0,0.0016]
[1617335614436,0.82232038,59760.0,59756.0,0.0016]
[1617335614863,0.41,59760.0,59756.0,0.0016]
[1617335615266,0.46232038,59760.0,59756.0,0.0016]
[1617335615464,0.38643,59759.0,59756.0,0.0016]
[1617335615666,0.44428,59762.0,59756.0,0.0016]
[1617335615868,0.85660038,59762.0,59756.0,0.0016]
[1617335616064,0.205,59761.0,59756.0,0.0016]
[1617335616265,0.38643,59760.0,59756.0,0.0016]
[1617335616665,0.43643,59760.0,59756.0,0.0016]
[1617335616867,0.17,59759.0,59756.0,0.0016]
[1617335617067,0.155,59758.0,59756.0,0.0016]
[1617335617290,0.28879,59758.0,59756.0,0.0016]
[1617335618505,0.205,59758.0,59756.0,0.0016]
[1617335619301,0.155,59758.0,59756.0,0.0016]
[1617335619503,0.155,59758.0,59757.0,3.19476742]
[1617335619701,0.155,59758.0,59757.0,3.09]
[1617335619973,0.155,59758.0,59756.0,0.252916]
[1617335620573,0.205,59758.0,59756.0,0.252916]
[1617335621572,0.05,59758.0,59756.0,0.252916]
[1617335621772,0.0514,59764.0,59756.0,0.252916]
[1617335623576,0.51372038,59764.0,59756.0,0.0016]
[1617335623777,1.23833038,59763.0,59756.0,0.0016]
[1617335623977,0.56732038,59762.0,59756.0,0.0016]
[1617335624178,0.79875038,59761.0,59756.0,0.0016]
[1617335624380,0.79875038,59761.0,59756.0,0.0001]
[1617335624381,3.09,59759.0,59756.0,0.0001]
[1617335624581,0.38643,59757.0,59756.0,0.0001]
[1617335624781,1.52369412,59757.0,59756.0,0.0001]
[1617335624982,1.58343223,59757.0,59756.0,0.0001]
[1617335625177,1.93343223,59757.0,59756.0,0.0001]
[1617335625377,2.79843223,59757.0,59756.0,0.0001]
[1617335625574,2.95243223,59757.0,59756.0,0.0001]
[1617335626782,3.20381523,59757.0,59756.0,0.0001]
[1617335628006,3.87726412,59756.0,59728.0,0.251418]
[1617335628204,0.33331392,59754.0,59728.0,0.251418]
[1617335628402,0.70538374,59746.0,59729.0,0.15]
[1617335628605,0.0048,59742.0,59729.0,0.15]
[1617335628803,0.17277736,59741.0,59729.0,0.15]
[1617335629006,0.16974012,59741.0,59729.0,0.15]
[1617335629201,0.2,59741.0,59729.0,0.15]
[1617335629403,0.145,59740.0,59729.0,0.14]
[1617335629603,0.145,59740.0,59730.0,0.15]
[1617335629803,0.004,59742.0,59730.0,0.15]
[1617335630412,0.205,59741.0,59730.0,0.15]
[1617335630815,0.205,59741.0,59734.0,0.251398]
[1617335631012,0.255,59741.0,59734.0,0.251398]
[1617335632214,0.15,59740.0,59734.0,0.251398]
[1617335632413,0.2,59740.0,59734.0,0.251398]
[1617335632616,0.05,59740.0,59730.0,0.485189]
[1617335632818,0.25543,59743.0,59730.0,0.15]
[1617335633043,0.00303724,59741.0,59730.0,0.15]
[1617335633643,0.62994374,59742.0,59730.0,0.15]
[1617335633843,0.60248098,59741.0,59730.0,0.15]
[1617335634053,0.05,59740.0,59732.0,0.251397]
[1617335634445,0.275,59741.0,59732.0,0.251397]
[1617335635044,0.05,59741.0,59732.0,0.251397]
[1617335635244,0.004,59743.0,59732.0,0.251397]
[1617335637900,0.19,59742.0,59732.0,0.251397]
[1617335638100,0.24,59742.0,59732.0,0.251397]
[1617335638503,0.56444374,59742.0,59733.0,0.58767962]
[1617335638709,0.19,59742.0,59737.0,0.251389]
[1617335638908,0.9701724,59767.0,59738.0,0.58767962]
[1617335638909,0.00303724,59765.0,59738.0,0.58767962]
[1617335639105,0.004,59759.0,59739.0,0.002]
[1617335639305,0.004,59759.0,59740.0,0.58767962]
[1617335639706,0.004,59759.0,59739.0,0.69404994]
[1617335639904,0.004,59759.0,59740.0,0.58767962]
[1617335640304,0.004,59759.0,59739.0,0.69404994]
[1617335640509,0.004,59759.0,59752.0,0.29178701]
[1617335640708,0.004,59759.0,59745.0,0.335108]
[1617335641323,0.004,59759.0,59743.0,0.002]
[1617335641524,0.04674,59765.0,59735.0,0.9488]
[1617335641525,0.0058,59752.0,59735.0,0.9488]
[1617335641721,0.17183724,59752.0,59735.0,0.9488]
[1617335641924,0.22183724,59752.0,59741.0,0.251369]
[1617335642123,0.61643,59751.0,59741.0,0.251369]
[1617335642328,0.61643,59751.0,59742.0,0.58767962]
[1617335642329,0.23,59751.0,59742.0,0.58767962]
[1617335642921,0.23,59751.0,59740.0,0.58767962]
[1617335643119,0.05,59752.0,59740.0,0.58767962]
[1617335643321,0.05,59752.0,59740.0,0.15]
[1617335643545,0.00303724,59766.0,59740.0,0.73767962]
[1617335643746,0.251341,59764.0,59748.0,0.251332]
[1617335643946,0.0046,59756.0,59748.0,0.251332]
[1617335645149,0.0046,59756.0,59745.0,0.253353]
[1617335645749,0.0046,59756.0,59745.0,0.251353]
[1617335645947,0.0046,59756.0,59745.0,0.25388831]
[1617335646576,0.0046,59756.0,59747.0,0.251345]